Cogmind - Beta 9.1 @@@ ROGUE MODE // 2019.10.30 @ 20:51:26 Player: Snowflake Result: Core destroyed Performance ------------- Evolutions (2) 1000 Regions Visited (3) 600 Robots Destroyed (59) 295 Value Destroyed (1303) 1303 Prototype IDs (1) 20 Alien Tech Used (0) 0 Bonus (0) 0 TOTAL SCORE: 3218 Bonus ------- None Cogmind --------- Core Integrity 0/550 Matter 39/300 Energy 6/240 System Corruption 0% Temperature Cool (737) Location -8/Materials Parts ------- Power (1) Nuclear Core Propulsion (2) Armored Treads Armored Treads Utility (6) Large Storage Unit High-capacity Storage Unit Terrain Scanner Seismic Analyzer Terrain Scan Processor Weapon (2) EM Pulse Cannon Flak Cannon Inventory (18) Light Ion Engine Light Nuclear Core Heat Sink Large Storage Unit Improved Signal Interpreter Transport Network Coupler Light Armor Plating Hardened Light Armor Plating Hardened Light Armor Plating Heavy EM Pulse Gun Heavy EM Pulse Gun EM Pulse Cannon EM Pulse Cannon EM Pulse Cannon Gauss Rifle Datajack Maul Peak State ------------ Power Nuclear Core Propulsion Armored Treads Armored Treads Utility Large Storage Unit High-capacity Storage Unit Terrain Scanner Seismic Analyzer Terrain Scan Processor Hardened Light Armor Plating Weapon EM Pulse Cannon EM Pulse Cannon Inventory Light Ion Engine Light Nuclear Core Heat Sink Large Storage Unit Improved Signal Interpreter Transport Network Coupler Light Armor Plating Hardened Light Armor Plating Hardened Light Armor Plating Heavy EM Pulse Gun Heavy EM Pulse Gun EM Pulse Cannon EM Pulse Cannon Gauss Rifle Flak Cannon Datajack Maul [Rating: 26] Favorites ----------- Power Light Ion Engine Engine Light Ion Engine Power Core Nuclear Core Propulsion Wheel Treads Armored Treads Wheel Wheel Hover Unit Aerolev Unit Utility Large Storage Unit Device Terrain Scanner Storage Large Storage Unit Processor Terrain Scan Processor Protection Light Armor Plating Weapon Light Assault Rifle Energy Gun Medium Laser Energy Cannon EM Pulse Cannon Ballistic Gun Light Assault Rifle Ballistic Cannon Light Cannon Launcher Grenade Launcher Special Weapon Plasma Cutter Impact Weapon Maul Build | -11 -10 -9 -8 ------- Run | Scr Mat Mat Mat Slots Evolved 4 | . . 2 2 Power . | . . . . Propulsion . | . . . . Utility 4 | . . 2 2 Weapon . | . . . . Parts Attached 82 | 8 13 24 37 Power 12 | 1 1 5 5 Engine 11 | 1 1 5 4 Core 1 | . . . 1 Reactor . | . . . . Propulsion 15 | 2 3 3 7 Treads 2 | . . . 2 Leg . | . . . . Wheel 12 | 2 3 3 4 Hover 1 | . . . 1 Flight . | . . . . Utility 16 | 2 2 5 7 Device 4 | . . 1 3 Storage 5 | 2 2 1 . Processor 4 | . . 3 1 Hackware . | . . . . Protection 3 | . . . 3 Artifact . | . . . . Weapon 39 | 3 7 11 18 Energy Gun 14 | 2 3 7 2 Energy Cannon 3 | . . . 3 Ballistic Gun 12 | 1 3 3 5 Ballistic Cannon 4 | . 1 . 3 Launcher 1 | . . 1 . Special Weapon 2 | . . . 2 Impact Weapon 3 | . . . 3 Slashing Weapon . | . . . . Piercing Weapon . | . . . . Special Melee Weapon . | . . . . Unidentified Prototypes 1 | . . . 1 Parts Lost 37 | . 5 18 14 Power 7 | . 1 4 2 Propulsion 8 | . 1 3 4 Utility 3 | . . 1 2 Weapon 19 | . 3 10 6 Highest Loss Streak 11 | . 2 11 10 Average Slot Usage (%) 94 | . 98 93 92 Engine 10 | . 14 9 7 Treads 1 | . . . 3 Wheel 19 | . 27 20 11 Device 6 | . . 5 14 Storage 22 | . 28 22 18 Processor 9 | . . 14 15 Protection 1 | . . . 4 Energy Gun 7 | . 12 8 3 Ballistic Gun 9 | . 14 12 3 Ballistic Cannon 2 | . 1 . 5 Naked Turns . | . . . . Heaviest Build 73 | 15 41 59 73 Greatest Support 40 | 26 32 26 40 Greatest Overweight (x) 19 | . 2 18 19 Average Overweight (x) 1 | . . 1 2 Largest Inventory Capacity 18 | 8 16 18 18 Average Capacity 15 | 6 11 17 18 Most Carried 18 | 4 15 18 18 Average Carried 12 | 1 9 14 15 Final Capacity 18 | 8 16 18 18 Final Carried 17 | 4 15 15 17 Class Distribution -------------------- 55% | Mutant 44% | Scavenger-Mutant Dominant Class ---------------- Mutant | -10/Materials Mutant | -9/Materials Scavenger-Mutant | -8/Materials Resources | -11 -10 -9 -8 ----------- Run | Scr Mat Mat Mat Matter Collected 1234 | 243 177 457 357 Remotely . | . . . . Salvage Created 1748 | 62 350 750 586 Parts 138 | 3 26 63 46 Haulers Intercepted 1 | . . . 1 Recyclers Shooed . | . . . . Parts Field Recycled . | . . . . Retrieved Matter . | . . . . Parts Self-Destructed . | . . . . Prevented . | . . . . Kills | -11 -10 -9 -8 ------- Run | Scr Mat Mat Mat Combat Hostiles Destroyed 46 | . 9 22 15 Melee 1 | . . . 1 Guns 31 | . 8 19 4 Cannons 11 | . 1 . 10 AOE 3 | . . 3 . Classes Destroyed 11 | 1 5 2 3 Worker 4 | . 1 3 . Builder 3 | . . 3 . Tunneler 1 | . . . 1 Hauler 1 | . . . 1 Recycler 2 | 1 . . 1 Operator 1 | . 1 . . Watcher 1 | . 1 . . Swarmer 23 | . 3 13 7 Grunt 15 | . 6 6 3 Sentry 7 | . . 3 4 Hunter 1 | . . . 1 Best Kill Streak 8 | 1 4 5 8 Combat Bots Only 7 | . 4 4 7 Max Kills in Single Turn 2 | 1 2 2 2 Gunslinging . | . . . . Exploded 1 | . . 1 . Melee 1 | . . . 1 Uniques/NPCs Destroyed . | . . . . Combat | -11 -10 -9 -8 -------- Run | Scr Mat Mat Mat Damage Taken 4678 | . 483 1579 2616 Core 1091 | . 89 370 632 Absorbed by Shields . | . . . . Core Remaining (%) 57 | 100 64 7 . Volleys Fired 227 | 1 61 91 74 Largest 2 | 2 2 2 2 Hottest 126 | 90 90 90 126 Shots Fired 405 | 2 114 166 123 Gun 318 | 2 105 163 48 Cannon 77 | . 9 . 68 Launcher 3 | . . 3 . Special 7 | . . . 7 Kinetic 225 | . 72 72 81 Thermal 103 | 1 30 65 7 Explosive 3 | . . 3 . Electromagnetic 74 | 1 12 26 35 Robot Hit Streak 17 | 1 7 17 12 Robot Miss Streak 8 | . 3 3 8 Penetration Max . | . . . . Secondary Targets 6 | . 1 5 . Max Gunslinging Chain 1 | . 1 1 . Shots Hit Robots 262 | 1 63 107 91 Core Hits 102 | 1 22 42 37 Critical Hits 2 | . . . 2 Critical Kills 2 | . . . 2 Critical Parts Destroyed . | . . . . Melee Attacks 15 | . . . 15 Impact 15 | . . . 15 Slashing . | . . . . Piercing . | . . . . Sneak Attacks . | . . . . Combat Hostiles . | . . . . Follow-up Attacks . | . . . . Damage Inflicted 3417 | 15 736 1214 1452 Guns 2261 | 15 579 1130 537 Cannons 892 | . 66 . 826 Explosions 175 | . 91 84 . Melee 43 | . . . 43 Ramming . | . . . . Kinetic 1899 | . 329 488 1082 Thermal 867 | . 311 510 46 Explosive 57 | . . 57 . Electromagnetic 551 | 15 96 159 281 Impact 43 | . . . 43 Slashing . | . . . . Piercing . | . . . . Highest Corruption . | . . . . Average Corruption . | . . . . Corruption Purged . | . . . . Overload Shots . | . . . . Overflow Damage 6 | . . . 6 Projectiles 6 | . . . 6 Explosions . | . . . . Melee . | . . . . Knockbacks 12 | . 2 . 10 Impact . | . . . . Kinetic 11 | . 2 . 9 Secondary 1 | . . . 1 Self-Inflicted Damage 109 | . . 109 . Shots 3 | . . 3 . Rammed . | . . . . Targets Rammed . | . . . . Kicked . | . . . . Crushed . | . . . . Highest Temperature 737 | 30 142 147 737 Average Temperature 82 | 17 47 40 157 Received Heat Transfer 1368 | . 198 378 792 Effects 15 | . . . 15 Shutdowns 2 | . . . 2 Energy Bleed 2 | . . . 2 Matter Decay 1 | . . . 1 Damage (minor) 2 | . . . 2 Damage (major) 6 | . . . 6 Damage (core) 2 | . . . 2 Siege Activations . | . . . . Robots Corrupted . | . . . . Combat Hostiles . | . . . . Parts Fried 1 | . . 1 . Impact Corruptions . | . . . . Robots Melted . | . . . . Combat Hostiles . | . . . . Parts Melted 3 | . . 1 2 Heat Transferred 2052 | . 754 1150 148 Parts Sabotaged . | . . . . Parts Stolen . | . . . . Parts Stripped . | . . . . Power Chain Reactions 2 | . 1 1 . Missiles Intercepted . | . . . . Alert | -11 -10 -9 -8 ------- Run | Scr Mat Mat Mat Peak Influence 341 | 5 182 341 235 Average Influence 126 | 1 83 189 128 Maximum Alert Level 1 | . . 1 1 Low Security (%) 79 | . . . . Level 1 20 | . . . . Level 2 . | . . . . Level 3 . | . . . . Level 4 . | . . . . Level 5 . | . . . . High Security . | . . . . Max Security . | . . . . Squads Dispatched 6 | . 2 2 2 Investigation 2 | . 1 . 1 Extermination . | . . . . Reinforcement 4 | . 1 2 1 Assault . | . . . . Garrison . | . . . . Intercept . | . . . . Construction Impeded . | . . . . Haulers Reinforced . | . . . . Stealth | -11 -10 -9 -8 --------- Run | Scr Mat Mat Mat Distress Signals 2 | . 1 . 1 Communications Jammed . | . . . . Distress Signals . | . . . . Times Spotted 77 | . 19 36 22 Peak Tracking Total 7 | . 3 6 7 Tactical Retreats 6 | . . 4 2 Traps | -11 -10 -9 -8 ------- Run | Scr Mat Mat Mat Traps Triggered 2 | . 1 . 1 Indirectly . | . . . . Trap Hack Attempts . | . . . . Triggered . | . . . . Disarmed . | . . . . Reprogrammed . | . . . . Reused . | . . . . Traps Extracted . | . . . . Installed . | . . . . Triggered . | . . . . Machines | -11 -10 -9 -8 ---------- Run | Scr Mat Mat Mat Machines Disabled 4 | . 1 1 2 Max in Single Turn 1 | . 1 1 1 Machines Sabotaged . | . . . . Garrisons Compromised . | . . . . Overloaded Fab Kills . | . . . . Fab Network Shutdowns . | . . . . Hacking | -11 -10 -9 -8 --------- Run | Scr Mat Mat Mat Machines Accessed 13 | . 8 2 3 Terminals 10 | . 7 2 1 Fabricators . | . . . . Repair Stations 2 | . 1 . 1 Recycling Units . | . . . . Scanalyzers 1 | . . . 1 Garrison Access . | . . . . Total Hacks 47 | . 25 7 15 Successful 28 | . 11 3 14 Failed 19 | . 14 4 1 Catastrophic 2 | . 2 . . Database Lockouts . | . . . . Manual 29 | . 20 7 2 Terminals 31 | . 22 7 2 Fabricators . | . . . . Repair Stations 12 | . 3 . 9 Recycling Units . | . . . . Scanalyzers 4 | . . . 4 Garrison Access . | . . . . Terminal Hacks 7 | . 5 1 1 Terminal Index 1 | . 1 . . Alert Level 1 | . 1 . . Unreport Threat 1 | . 1 . . Recall Investigation 1 | . 1 . . Zone Layout 3 | . 1 1 1 Fabricator Hacks . | . . . . Repair Station Hacks 10 | . 2 . 8 Scan Component 5 | . 1 . 4 Repair 5 | . 1 . 4 Recycling Unit Hacks . | . . . . Scanalyzer 4 | . . . 4 Insert Component 2 | . . . 2 Analyze 2 | . . . 2 Garrison Access Hacks . | . . . . Unauthorized Hacks 18 | . 12 4 2 Terminals 7 | . 4 2 1 Botnet 7 | . 4 2 1 Fabricators . | . . . . Repair Stations . | . . . . Recycling Units . | . . . . Scanalyzers . | . . . . Garrison Access . | . . . . Data Cores Recovered . | . . . . Used . | . . . . Hacking Detections 10 | . 7 2 1 Full Trace Events 1 | . 1 . . Feedback Events . | . . . . Feedback Blocked . | . . . . Robot Schematics Acquired . | . . . . Robots Built . | . . . . Matter . | . . . . Time . | . . . . Total Robot Build Rating . | . . . . Part Schematics Acquired 2 | . . . 2 Parts Built . | . . . . Matter . | . . . . Time . | . . . . Total Part Build Rating . | . . . . Parts Repaired 5 | . 1 . 4 Time 154 | . 26 . 128 Parts Recycled . | . . . . Recycled Matter . | . . . . Retrieved Matter . | . . . . Retrieved Components . | . . . . Parts Scanalyzed 2 | . . . 2 Part Schematics Acquired 2 | . . . 2 Parts Damaged . | . . . . Bothacking | -11 -10 -9 -8 ------------ Run | Scr Mat Mat Mat Used RIF Installer . | . . . . Robots Hacked . | . . . . Non-combat . | . . . . Combat . | . . . . Robot Hacks Applied . | . . . . Relay Couplers Released . | . . . . Robots Rewired . | . . . . Allies Hacked . | . . . . Hacks Repelled . | . . . . Allies | -11 -10 -9 -8 -------- Run | Scr Mat Mat Mat Total Allies . | . . . . Largest Group . | . . . . Highest-Rated Group . | . . . . Highest-Rated Ally . | . . . . Total Orders . | . . . . Ally Attacks . | . . . . Total Damage . | . . . . Kills . | . . . . Allies Corrupted . | . . . . Allies Melted . | . . . . Intel | -11 -10 -9 -8 ------- Run | Scr Mat Mat Mat Robot Analysis Total . | . . . . Derelict Logs Recovered . | . . . . Drone Launches . | . . . . Drone Recoveries . | . . . . Exploration | -11 -10 -9 -8 ------------- Run | Scr Mat Mat Mat Turns Passed 2325 | 63 789 628 845 Spaces Moved 1104 | 46 521 271 266 Core 6 | 1 . 2 3 Treads 49 | . . . 49 Legs . | . . . . Wheels 1049 | 45 521 269 214 Hover . | . . . . Flight . | . . . . Fastest Speed 50 | 50 90 100 100 Average Speed 108 | 88 99 110 127 Slowest Speed 1000 | 90 120 950 1000 Overloaded Moves . | . . . . Propulsion Burnouts . | . . . . Robots Hopped . | . . . . Cave-ins Triggered . | . . . . Exploration Rate (%) 34 | 4 84 30 20 Regions Visited 3 Branch Regions . Pre-discovered Areas . | . . . . Known Exits Taken 1 | . . 1 . Unknown Exits Taken 2 | 1 1 . . Scrap Searched . | . . . . Spaces Dug 8 | . . . 8 Terrain Destroyed 36 | . 8 20 8 Melee 8 | . . . 8 Projectile . | . . . . AOE 28 | . 8 20 . Actions | -11 -10 -9 -8 --------- Run | Scr Mat Mat Mat Total 1796 | 62 687 437 610 Wait 295 | 4 71 30 190 Move 1101 | 45 520 270 266 Hop . | . . . . Pick Up 53 | 3 16 18 16 Fast Attach 29 | 8 3 4 14 Attach 32 | . 4 16 12 Detach 4 | 1 1 . 2 Swap 21 | . 6 4 11 Drop 19 | . 5 4 10 Fire 227 | 1 61 91 74 Melee 15 | . . . 15 Ram . | . . . . Kick . | . . . . Crush . | . . . . Escape Stasis . | . . . . Rewire . | . . . . Trap . | . . . . Miscellaneous . | . . . . Route ------- -11/Scrapyard -10/Materials (discovered 3 exits: *Mat x2 / [*Min]) -9/Materials -8/Materials (discovered 1 exit: *Sto) History --------- Turn | Location | Event 18 | -11/Scrapyard | Discovered new exit (range 16) 64 | -11/Scrapyard | Entered Materials 315 | -10/Materials | Build established: Mutant 473 | -10/Materials | Discovered new exit (range 10) 557 | -10/Materials | Discovered new exit (range 11) 796 | -10/Materials | Repaired Com. Wheel 836 | -10/Materials | Discovered new exit (range 10) 853 | -10/Materials | Entered another Materials area 853 | -9/Materials | Evolved 2 slots: Utility x2 1201 | -9/Materials | Core integrity fell below 50% 1257 | -9/Materials | Lost 11 parts (2p3n1u5w) 1376 | -9/Materials | Core integrity fell below 20% 1431 | -9/Materials | Discovered new exit (range 10) 1438 | -9/Materials | Lost 5 parts (1p4w) 1480 | -9/Materials | Identified exit to Materials 1481 | -9/Materials | Entered another Materials area 1481 | -8/Materials | Evolved 2 slots: Utility x2 1617 | -8/Materials | Discovered new exit (range 14) 1694 | -8/Materials | Identified exit to Storage 1776 | -8/Materials | Build established: Scavenger-Mutant 1834 | -8/Materials | Repaired Lgt. Armor Plating 1862 | -8/Materials | Repaired Lgt. Cannon 1907 | -8/Materials | Repaired Gauss Rifle 1941 | -8/Materials | Repaired Imp. Ion Engine 2098 | -8/Materials | Core integrity fell below 50% 2144 | -8/Materials | Lost 10 parts (2p2n1u5w) 2324 | -8/Materials | Core integrity fell below 20% 2326 | -8/Materials | Destroyed 7 combat bots 2327 | -8/Materials | Core destroyed Last Messages --------------- Overheating: Matter decay (-16). R-06 Scavenger collects Flight Unit. Overheating: Arm. Treads damaged (-75). Overheating: Terrain Scan Processor damaged (-14). K-01 Serf knocked back. R-06 Scavenger collects Flight Unit. R-06 Scavenger collects Tractor Beam. Overheating: Terrain Scanner damaged (-6). Destroyed Particle Gun. Power failure, Nuclear Core shutdown. Overheating: Hrd. Light Armor Plating damaged (-24). Overheating: Flak Cannon damaged (-54). Overheating: EM Pulse Cannon damaged (-3). Overheating: Seismic Analyzer damaged (-8). Overheating: Core damaged (-110). G-47 Trooper knocked back. Power failure, Nuclear Core shutdown. Overheating: Nuclear Core damaged (-2). Hrd. Light Armor Plating destroyed. Overheating: Core damaged (-110). Map ----- +----------------------------------------------------+ | ?????????????????????????????????????????????????? | | ?????????????????????????????????????????????????? | | ?????????????????????????????????????????????????? | | ?????????????????????????????????????????????????? | | ?????????????????????????????????????????????????? | | ?????????????????????????????????????????????????? | | ?????????????????????????????????????????????????? | | ?????????????????????????????????????????????????? | | ?????????????????????????????????????????????????? | | ?????????????????????????????????????????????????? | | ?????????????????????????????????????????????????? | | ##?#??????????????? ???"???????????????????????? | | ####?##???????????# #???"""? ??????????????????? | | ?##?##?#??????? ??# #?"""?"??#?????????????????? | | ####?####??"??? # #? """ ???????????????????? | | #########?? ?? ?+ +? ??? ???? ??????????????? | | #########?? # # ? ? ###???????????????? | | ######### ? # #? ?? #?? ??????????????? | | ###?##?#######?#### ##?#?#?##### ?? ???????????? | | ################## =##### #?#?# ? ????????????? | | ???? ? ? ??????????? | | T ? ? ?? # ??????????? | | ? ? ? ? ?? ??????????? | | +#############+### #### ? ? ? ? +???????????? | | % ###### ####+###### ? ?????????????? | | ###### !! # %!%!@# ? ? ?#???????????? | | ###### ! # """ %%%# ##??????????? | | / + + "" *% %*# ??? ? ????????????? | | =###### # "" =%% =# ?? #???????????? | | ###### # """ ==%*#? ? ? #???????????? | | ################# """gg*[#########/?##??????????? | | ################# r #???# ????????????? | | ################# ###?#""? ? ???????????? | | ###########################?#??"?? ?????????????? | | """ #############?####?""? ??????????????? | | "R" """ ###########??####?# ?? ??????????????? | | " " """ ###############?##?? ???????????????? | | """ ########?##?####### ? ??????????????? | | #?####?#?#####??## ??????????????????? | | #?#####??##?#??##????????????????????? | | ######?######?##?????????????????????? | | !!| ##?###?##??##?#?#????????????????????? | | ![ ###?###?#???#??#?????????????????????? | | !| ####?#??#?#?#????#???????????????????? | | #??####?##?#?????????????????????????? | | ######???????????????????????????????? | | ######"#+#######?##??????????????????????????????? | | ### ###??##?#??##??????????????????????????? | | ### ####?##????????????????????????????????? | | ### = ##?###??#??????????????????????????????? | +----------------------------------------------------+ Best States ------------- Heat Dissipation 41 Energy Generation 14 Energy Capacity 265 Matter Stores 300 Matter Capacity 300 Sight Range 16 Robot Scan Range 10 Terrain Scan Range 14 Terrain Scan Density 135 Additional Mass Support 6 Armor Coverage 150 Evasion (%) 42 Recoil Reduction 2 Item Schematics ----------------- Hvy. EM Pulse Gun | -8/Materials | Scanalyzed Transport Network Coupler | -8/Materials | Scanalyzed Robot Schematics ------------------ None Fabricated ------------ Nothing Alien Tech Used ----------------- None Achievements -------------- Close Call Challenges ------------ None Game ------ Seed TractorNetworkDeconstructor Manual? 0 Play Time 00:35:05 Cumulative 36.0 hours Start 2019.10.30 @ 17:51:08 End 2019.10.30 @ 20:51:26 Sessions 3 Manual Loads 0 Difficulty Rogue Special Mode None Game No. 12 Rogue -6 Adventurer 9 Explorer 0 Win Type - Total 0 Types 0/0/0/0/0/0/0 Lore% 24 Gallery% 33 Achievement% 30 Wizard Run 0 Options --------- ASCII 0 Keyboard 0 Movement Mouse Keybinds 1 Fullscreen 2 Font 18/X11Bold Map View 76x50 Tactical HUD 0 Map Filters NONE Filters NONE Steam 1 RUN: 0d6b3274-6a52-402e-85a2-1c2136f0fb93